[Event "Early-Titled-Tuesday-Blitz-August-29-2023"]
[Site "Chess.com"]
[Date "2023.08.29"]
[Round "7"]
[White "AquivaRubinstein"]
[Black "tylityli"]
[Result "1/2-1/2"]
[WhiteElo "2473"]
[BlackElo "2359"]
[TimeControl "180+1"]
[EndTime "9:17:55 PDT"]
[Termination "Game drawn by repetition"]

1. d4 {[%clk 0:03:00.9]} 1... Nf6 {[%clk 0:02:54.9]} 2. c4 {[%clk 0:03:01]} 2...
e6 {[%clk 0:02:54.7]} 3. Nf3 {[%clk 0:03:00.6]} 3... Bb4+ {[%clk 0:02:54]} 4.
Nbd2 {[%clk 0:03:00.8]} 4... b6 {[%clk 0:02:52.3]} 5. a3 {[%clk 0:02:59.5]} 5...
Bxd2+ {[%clk 0:02:52]} 6. Nxd2 {[%clk 0:02:59.7]} 6... Bb7 {[%clk 0:02:51.7]} 7.
f3 {[%clk 0:03:00]} 7... d5 {[%clk 0:02:49.6]} 8. e3 {[%clk 0:02:57.9]} 8... O-O
{[%clk 0:02:48.6]} 9. Bd3 {[%clk 0:02:57.9]} 9... c5 {[%clk 0:02:48.1]} 10. dxc5
{[%clk 0:02:53.4]} 10... bxc5 {[%clk 0:02:47.3]} 11. O-O {[%clk 0:02:53.5]}
11... Nc6 {[%clk 0:02:30.9]} 12. b3 {[%clk 0:02:50.8]} 12... Ne5 {[%clk
0:02:19.9]} 13. Be2 {[%clk 0:02:50.3]} 13... d4 {[%clk 0:02:17.6]} 14. f4 {[%clk
0:02:22.4]} 14... Ng6 {[%clk 0:01:51.7]} 15. Bf3 {[%clk 0:02:15.5]} 15... dxe3
{[%clk 0:01:34.9]} 16. Bxb7 {[%clk 0:02:08.1]} 16... exd2 {[%clk 0:01:34.6]} 17.
Qxd2 {[%clk 0:01:56.6]} 17... Rb8 {[%clk 0:01:32]} 18. Bf3 {[%clk 0:01:36.9]}
18... Qxd2 {[%clk 0:01:24.6]} 19. Bxd2 {[%clk 0:01:36.6]} 19... Rxb3 {[%clk
0:01:25.5]} 20. g3 {[%clk 0:01:08.7]} 20... Ne7 {[%clk 0:01:17.1]} 21. Bd1
{[%clk 0:00:51.4]} 21... Rd3 {[%clk 0:01:10.2]} 22. Be1 {[%clk 0:00:44.7]} 22...
Nc6 {[%clk 0:01:00.4]} 23. Be2 {[%clk 0:00:38]} 23... Rd6 {[%clk 0:00:54.5]} 24.
Bf2 {[%clk 0:00:37.7]} 24... Nd4 {[%clk 0:00:54.2]} 25. Bxd4 {[%clk 0:00:33]}
25... Rxd4 {[%clk 0:00:53.6]} 26. Rab1 {[%clk 0:00:32.9]} 26... Rfd8 {[%clk
0:00:52.3]} 27. Rb7 {[%clk 0:00:32.5]} 27... R4d7 {[%clk 0:00:51.2]} 28. Rfb1
{[%clk 0:00:32.4]} 28... Kf8 {[%clk 0:00:47.9]} 29. Bf3 {[%clk 0:00:32.4]} 29...
Rxb7 {[%clk 0:00:42.3]} 30. Rxb7 {[%clk 0:00:31.9]} 30... Rd7 {[%clk 0:00:42.6]}
31. Rb8+ {[%clk 0:00:30]} 31... Ke7 {[%clk 0:00:42.8]} 32. Rc8 {[%clk
0:00:30.3]} 32... Rd3 {[%clk 0:00:39.2]} 33. Kg2 {[%clk 0:00:29.4]} 33... Rxa3
{[%clk 0:00:37.7]} 34. Rc7+ {[%clk 0:00:29.6]} 34... Kf8 {[%clk 0:00:30.2]} 35.
Rc8+ {[%clk 0:00:29]} 35... Ke7 {[%clk 0:00:30]} 36. Rc7+ {[%clk 0:00:29.4]}
36... Kf8 {[%clk 0:00:29.8]} 37. Rxc5 {[%clk 0:00:21.8]} 37... g6 {[%clk
0:00:21.3]} 38. Rc8+ {[%clk 0:00:19.5]} 38... Kg7 {[%clk 0:00:21.3]} 39. c5
{[%clk 0:00:19.9]} 39... Nd5 {[%clk 0:00:18.6]} 40. c6 {[%clk 0:00:17.7]} 40...
Rc3 {[%clk 0:00:18.4]} 41. Bxd5 {[%clk 0:00:15]} 41... exd5 {[%clk 0:00:18.2]}
42. Kf2 {[%clk 0:00:14]} 42... d4 {[%clk 0:00:18.1]} 43. Ke2 {[%clk 0:00:14.2]}
43... a5 {[%clk 0:00:17.6]} 44. Kd2 {[%clk 0:00:14.5]} 44... a4 {[%clk
0:00:17.1]} 45. Ra8 {[%clk 0:00:14.1]} 45... Rxc6 {[%clk 0:00:15.3]} 46. Rxa4
{[%clk 0:00:14.3]} 46... Rb6 {[%clk 0:00:13.9]} 47. Ra2 {[%clk 0:00:11.8]} 47...
Rb4 {[%clk 0:00:12.7]} 48. Kd3 {[%clk 0:00:12.2]} 48... h5 {[%clk 0:00:12.6]}
49. Re2 {[%clk 0:00:12.3]} 49... Kf6 {[%clk 0:00:12.6]} 50. Re4 {[%clk
0:00:12.5]} 50... Rb2 {[%clk 0:00:11.5]} 51. Rxd4 {[%clk 0:00:10.2]} 51... Rxh2
{[%clk 0:00:11]} 52. Ke3 {[%clk 0:00:10.5]} 52... Rb2 {[%clk 0:00:10.4]} 53. Kf3
{[%clk 0:00:10.1]} 53... Rb3+ {[%clk 0:00:10.4]} 54. Kf2 {[%clk 0:00:10.3]}
54... Rb2+ {[%clk 0:00:10.3]} 55. Kf3 {[%clk 0:00:10.3]} 55... Rb6 {[%clk
0:00:11.2]} 56. Rc4 {[%clk 0:00:10.1]} 56... Re6 {[%clk 0:00:07.6]} 57. Rc5
{[%clk 0:00:10.1]} 57... Kg7 {[%clk 0:00:07.5]} 58. Rb5 {[%clk 0:00:10.4]} 58...
Kf6 {[%clk 0:00:07.5]} 59. Rc5 {[%clk 0:00:10.8]} 59... Rd6 {[%clk 0:00:07.7]}
60. Rb5 {[%clk 0:00:11.1]} 60... Ra6 {[%clk 0:00:07.2]} 61. Rc5 {[%clk
0:00:10.9]} 61... Re6 {[%clk 0:00:06.7]} 62. Rb5 {[%clk 0:00:11.2]} 62... Kg7
{[%clk 0:00:06.6]} 63. Rc5 {[%clk 0:00:11.5]} 63... Kf6 {[%clk 0:00:06.6]} 64.
Rb5 {[%clk 0:00:11.8]} 64... Rc6 {[%clk 0:00:06.3]} 65. Kg2 {[%clk 0:00:12]}
65... Re6 {[%clk 0:00:06.6]} 66. Kh3 {[%clk 0:00:12.2]} 66... Rd6 {[%clk
0:00:06.9]} 67. Rc5 {[%clk 0:00:11.9]} 67... Re6 {[%clk 0:00:07.3]} 68. Kg2
{[%clk 0:00:12]} 68... Rd6 {[%clk 0:00:07.7]} 69. Kf3 {[%clk 0:00:12.2]} 69...
Re6 {[%clk 0:00:08]} 1/2-1/2

[Event "Early-Titled-Tuesday-Blitz-August-29-2023"]
[Site "Chess.com"]
[Date "2023.08.29"]
[Round "7"]
[White "Mikedannnn"]
[Black "sokidze"]
[Result "1-0"]
[WhiteElo "2597"]
[BlackElo "2748"]
[TimeControl "180+1"]
[EndTime "9:17:57 PDT"]
[Termination "Mikedannnn won on time"]

1. d4 {[%clk 0:02:53.2]} 1... Nf6 {[%clk 0:02:58]} 2. c4 {[%clk 0:02:52.1]} 2...
e6 {[%clk 0:02:57]} 3. Nc3 {[%clk 0:02:51]} 3... Bb4 {[%clk 0:02:55.7]} 4. Nf3
{[%clk 0:02:45.4]} 4... b6 {[%clk 0:02:51.6]} 5. g3 {[%clk 0:02:44.4]} 5... Bb7
{[%clk 0:02:43.3]} 6. Bg2 {[%clk 0:02:43.8]} 6... O-O {[%clk 0:02:40.6]} 7. O-O
{[%clk 0:02:43.9]} 7... Bxc3 {[%clk 0:02:39.2]} 8. bxc3 {[%clk 0:02:43.2]} 8...
d6 {[%clk 0:02:39.2]} 9. Re1 {[%clk 0:02:15.8]} 9... Nc6 {[%clk 0:02:19.9]} 10.
e4 {[%clk 0:02:07.8]} 10... Na5 {[%clk 0:02:18.8]} 11. Qd3 {[%clk 0:01:59]}
11... Ba6 {[%clk 0:02:08.1]} 12. Nd2 {[%clk 0:01:58.1]} 12... d5 {[%clk
0:01:34.3]} 13. exd5 {[%clk 0:01:25.1]} 13... exd5 {[%clk 0:01:34.3]} 14. Qf3
{[%clk 0:01:24.5]} 14... Nxc4 {[%clk 0:01:30.5]} 15. Nxc4 {[%clk 0:01:22.4]}
15... Bxc4 {[%clk 0:01:30]} 16. Bg5 {[%clk 0:01:15.5]} 16... c6 {[%clk
0:01:25.6]} 17. Bf1 {[%clk 0:00:46.2]} 17... Bxf1 {[%clk 0:01:19.2]} 18. Kxf1
{[%clk 0:00:47.1]} 18... Qd6 {[%clk 0:01:12.8]} 19. Bxf6 {[%clk 0:00:46.4]}
19... Qxf6 {[%clk 0:01:13.7]} 20. Qxf6 {[%clk 0:00:46.1]} 20... gxf6 {[%clk
0:01:14.6]} 21. a4 {[%clk 0:00:43.2]} 21... Rfe8 {[%clk 0:01:10.7]} 22. a5
{[%clk 0:00:43]} 22... b5 {[%clk 0:01:09.9]} 23. Re3 {[%clk 0:00:36.6]} 23...
Rxe3 {[%clk 0:01:02.2]} 24. fxe3 {[%clk 0:00:36]} 24... f5 {[%clk 0:00:58.1]}
25. Ke2 {[%clk 0:00:35.5]} 25... Kg7 {[%clk 0:00:57.7]} 26. Kd3 {[%clk
0:00:32.3]} 26... Kf6 {[%clk 0:00:51.6]} 27. Rf1 {[%clk 0:00:32.1]} 27... h5
{[%clk 0:00:52]} 28. Rf4 {[%clk 0:00:30.6]} 28... Re8 {[%clk 0:00:51]} 29. Rh4
{[%clk 0:00:23.6]} 29... Kg5 {[%clk 0:00:50.7]} 30. Rf4 {[%clk 0:00:22.1]} 30...
Re4 {[%clk 0:00:41.1]} 31. Ke2 {[%clk 0:00:14.8]} 31... Re8 {[%clk 0:00:14.4]}
32. Kd3 {[%clk 0:00:13.9]} 32... Re7 {[%clk 0:00:14.3]} 33. Rf2 {[%clk
0:00:13.9]} 33... Re4 {[%clk 0:00:13.3]} 34. Rf3 {[%clk 0:00:14.1]} 34... h4
{[%clk 0:00:05.7]} 35. gxh4+ {[%clk 0:00:12]} 35... Rxh4 {[%clk 0:00:04.9]} 36.
Rf2 {[%clk 0:00:12.1]} 36... f4 {[%clk 0:00:01.3]} 37. Rg2+ {[%clk 0:00:09.8]}
37... Kf5 {[%clk 0:00:01.6]} 38. exf4 {[%clk 0:00:09.4]} 38... Rh3+ {[%clk
0:00:01.8]} 39. Kc2 {[%clk 0:00:09.1]} 39... Kxf4 {[%clk 0:00:02.7]} 40. Rf2+
{[%clk 0:00:08.8]} 40... Rf3 {[%clk 0:00:01.9]} 41. Rg2 {[%clk 0:00:09.5]} 41...
f5 {[%clk 0:00:02.3]} 42. Rg7 {[%clk 0:00:09.1]} 42... a6 {[%clk 0:00:02.7]} 43.
Rc7 {[%clk 0:00:08.7]} 43... Rf2+ {[%clk 0:00:02.3]} 44. Kb3 {[%clk 0:00:08.1]}
44... Rxh2 {[%clk 0:00:03]} 45. Rxc6 {[%clk 0:00:08.8]} 45... Ke3 {[%clk
0:00:01.7]} 46. Rxa6 {[%clk 0:00:09.2]} 46... f4 {[%clk 0:00:01.5]} 47. Re6+
{[%clk 0:00:09]} 47... Kf2 {[%clk 0:00:01.2]} 48. a6 {[%clk 0:00:08.8]} 48... f3
{[%clk 0:00:01.6]} 49. Kb4 {[%clk 0:00:08.2]} 49... Kg2 {[%clk 0:00:01.3]} 50.
Kxb5 {[%clk 0:00:07.7]} 50... f2 {[%clk 0:00:01.5]} 51. Rf6 {[%clk 0:00:08]} 1-0

[Event "Early-Titled-Tuesday-Blitz-August-29-2023"]
[Site "Chess.com"]
[Date "2023.08.29"]
[Round "7"]
[White "platy3"]
[Black "PeshkaCh"]
[Result "1-0"]
[WhiteElo "2931"]
[BlackElo "2795"]
[TimeControl "180+1"]
[EndTime "9:17:58 PDT"]
[Termination "platy3 won by checkmate"]

1. c4 {[%clk 0:03:00.9]} 1... e5 {[%clk 0:03:00.2]} 2. Nc3 {[%clk 0:02:58.3]}
2... Nf6 {[%clk 0:03:00.6]} 3. Nf3 {[%clk 0:02:55.5]} 3... Nc6 {[%clk
0:03:00.1]} 4. d3 {[%clk 0:02:54.8]} 4... d5 {[%clk 0:02:56.8]} 5. cxd5 {[%clk
0:02:54.6]} 5... Nxd5 {[%clk 0:02:57.7]} 6. g3 {[%clk 0:02:52]} 6... Be7 {[%clk
0:02:54.8]} 7. Bg2 {[%clk 0:02:49.9]} 7... Be6 {[%clk 0:02:55.2]} 8. O-O {[%clk
0:02:48.9]} 8... O-O {[%clk 0:02:54.8]} 9. a3 {[%clk 0:02:43.8]} 9... a5 {[%clk
0:02:54.7]} 10. Bd2 {[%clk 0:02:43.6]} 10... f6 {[%clk 0:02:52.4]} 11. Nxd5
{[%clk 0:02:38.9]} 11... Bxd5 {[%clk 0:02:52]} 12. Bc3 {[%clk 0:02:39.6]} 12...
Qd7 {[%clk 0:02:49.8]} 13. Nd2 {[%clk 0:02:36.9]} 13... Bxg2 {[%clk 0:02:48.1]}
14. Kxg2 {[%clk 0:02:37.8]} 14... Qd5+ {[%clk 0:02:48.3]} 15. Kg1 {[%clk
0:02:38.1]} 15... Rad8 {[%clk 0:02:47.7]} 16. Rb1 {[%clk 0:02:30.4]} 16... Rfe8
{[%clk 0:02:31.5]} 17. b4 {[%clk 0:02:28.8]} 17... axb4 {[%clk 0:02:25.9]} 18.
axb4 {[%clk 0:02:29.7]} 18... Ra8 {[%clk 0:02:21.9]} 19. b5 {[%clk 0:02:04.7]}
19... Nd4 {[%clk 0:02:19.4]} 20. Bxd4 {[%clk 0:02:05.2]} 20... exd4 {[%clk
0:02:20.3]} 21. Qb3 {[%clk 0:02:05.5]} 21... Qxb3 {[%clk 0:02:14.1]} 22. Nxb3
{[%clk 0:02:06.4]} 22... Ra4 {[%clk 0:02:11.2]} 23. Rfc1 {[%clk 0:02:04.6]}
23... Bd6 {[%clk 0:02:09.6]} 24. Nc5 {[%clk 0:01:19.4]} 24... Bxc5 {[%clk
0:01:34.6]} 25. Rxc5 {[%clk 0:01:20.3]} 25... Rxe2 {[%clk 0:01:33.5]} 26. Rxc7
{[%clk 0:01:20.6]} 26... Raa2 {[%clk 0:01:33]} 27. Rf1 {[%clk 0:01:20.5]} 27...
h5 {[%clk 0:01:13.9]} 28. Rxb7 {[%clk 0:01:17.3]} 28... Red2 {[%clk 0:01:09.8]}
29. b6 {[%clk 0:00:58.4]} 29... Rab2 {[%clk 0:01:04.7]} 30. h4 {[%clk
0:00:40.5]} 30... Kh7 {[%clk 0:00:38.9]} 31. Rd7 {[%clk 0:00:29]} 31... Rxd3
{[%clk 0:00:37.1]} 32. Re1 {[%clk 0:00:28.1]} 32... Rxb6 {[%clk 0:00:20.5]} 33.
Ree7 {[%clk 0:00:27.6]} 33... Kg6 {[%clk 0:00:20.8]} 34. Rxg7+ {[%clk
0:00:25.1]} 34... Kf5 {[%clk 0:00:21.5]} 35. Kg2 {[%clk 0:00:20.5]} 35... Rb2
{[%clk 0:00:19.4]} 36. Rd5+ {[%clk 0:00:20.7]} 36... Ke6 {[%clk 0:00:18.2]} 37.
Rxh5 {[%clk 0:00:13.9]} 37... Rdd2 {[%clk 0:00:18.4]} 38. Kf3 {[%clk 0:00:14.3]}
38... Rxf2+ {[%clk 0:00:14.2]} 39. Ke4 {[%clk 0:00:13.9]} 39... Rbe2+ {[%clk
0:00:08.6]} 40. Kxd4 {[%clk 0:00:13.6]} 40... Rd2+ {[%clk 0:00:08.7]} 41. Kc5
{[%clk 0:00:11.2]} 41... Rc2+ {[%clk 0:00:08.9]} 42. Kb6 {[%clk 0:00:11.5]}
42... Rf3 {[%clk 0:00:05.1]} 43. Rb5 {[%clk 0:00:07.5]} 43... Rfc3 {[%clk
0:00:02.4]} 44. g4 {[%clk 0:00:06.8]} 44... Rc6+ {[%clk 0:00:02.7]} 45. Kb7
{[%clk 0:00:07.5]} 45... R6c4 {[%clk 0:00:03.1]} 46. h5 {[%clk 0:00:07.8]} 46...
Rh2 {[%clk 0:00:03.3]} 47. Rb6+ {[%clk 0:00:07]} 47... Ke5 {[%clk 0:00:03.8]}
48. Re7+ {[%clk 0:00:07.3]} 48... Kf4 {[%clk 0:00:04.3]} 49. Rg7 {[%clk
0:00:07.4]} 49... Kg3 {[%clk 0:00:03]} 50. Rxf6 {[%clk 0:00:05.4]} 50... Rxg4
{[%clk 0:00:03.4]} 51. h6 {[%clk 0:00:06.1]} 51... Rh3 {[%clk 0:00:01.6]} 52.
Kc7 {[%clk 0:00:05.4]} 52... Rh2 {[%clk 0:00:01.8]} 53. Kd8 {[%clk 0:00:05.6]}
53... Rd2+ {[%clk 0:00:01.2]} 54. Ke8 {[%clk 0:00:05.9]} 54... Ra2 {[%clk
0:00:01.9]} 55. Kf7 {[%clk 0:00:05.8]} 55... Ra7+ {[%clk 0:00:01.7]} 56. Kg8
{[%clk 0:00:06.5]} 56... Ra8+ {[%clk 0:00:02.4]} 57. Kh7 {[%clk 0:00:06.7]}
57... Kh4 {[%clk 0:00:01.8]} 58. Rxg4+ {[%clk 0:00:06]} 58... Kxg4 {[%clk
0:00:02.7]} 59. Kg7 {[%clk 0:00:06.8]} 59... Kg5 {[%clk 0:00:03]} 60. h7 {[%clk
0:00:06.9]} 60... Rb8 {[%clk 0:00:03.1]} 61. Rf7 {[%clk 0:00:07.2]} 61... Rc8
{[%clk 0:00:03.5]} 62. h8=Q {[%clk 0:00:06.7]} 62... Rc6 {[%clk 0:00:04.1]} 63.
Qh7 {[%clk 0:00:05.6]} 63... Rb6 {[%clk 0:00:01.5]} 64. Rf5+ {[%clk 0:00:05.6]}
64... Kg4 {[%clk 0:00:01.4]} 65. Qh5+ {[%clk 0:00:06.5]} 65... Kg3 {[%clk
0:00:02.3]} 66. Rf3+ {[%clk 0:00:07.4]} 66... Kg2 {[%clk 0:00:03]} 67. Qh3+
{[%clk 0:00:08.3]} 67... Kg1 {[%clk 0:00:03.7]} 68. Rf1# {[%clk 0:00:09.2]} 1-0

[Event "Early-Titled-Tuesday-Blitz-August-29-2023"]
[Site "Chess.com"]
[Date "2023.08.29"]
[Round "7"]
[White "GalaxyRoman"]
[Black "Kaua18"]
[Result "1-0"]
[WhiteElo "2708"]
[BlackElo "2491"]
[TimeControl "180+1"]
[EndTime "9:18:00 PDT"]
[Termination "GalaxyRoman won by resignation"]

1. e4 {[%clk 0:03:00.9]} 1... c5 {[%clk 0:03:00]} 2. Nc3 {[%clk 0:03:01]} 2...
e6 {[%clk 0:03:00]} 3. f4 {[%clk 0:03:01.6]} 3... Nc6 {[%clk 0:02:59.3]} 4. Nf3
{[%clk 0:03:02.5]} 4... d5 {[%clk 0:02:58.8]} 5. Bb5 {[%clk 0:03:02.9]} 5... Bd7
{[%clk 0:02:57.6]} 6. exd5 {[%clk 0:03:02.4]} 6... exd5 {[%clk 0:02:57.8]} 7.
Qe2+ {[%clk 0:03:02.9]} 7... Qe7 {[%clk 0:02:56.2]} 8. Nxd5 {[%clk 0:02:50.4]}
8... Qxe2+ {[%clk 0:02:54.4]} 9. Bxe2 {[%clk 0:02:51.3]} 9... O-O-O {[%clk
0:02:55.3]} 10. Ne3 {[%clk 0:02:51.3]} 10... Bd6 {[%clk 0:02:53.8]} 11. g3
{[%clk 0:02:50.3]} 11... Nf6 {[%clk 0:02:47.6]} 12. O-O {[%clk 0:02:47.3]} 12...
Rhe8 {[%clk 0:02:46.9]} 13. Re1 {[%clk 0:02:41.8]} 13... Ng4 {[%clk 0:02:15.3]}
14. b3 {[%clk 0:02:26.9]} 14... Nb4 {[%clk 0:01:34.8]} 15. Bd1 {[%clk
0:02:22.7]} 15... c4 {[%clk 0:01:34.8]} 16. Bb2 {[%clk 0:02:04.4]} 16... Bc5
{[%clk 0:01:23.5]} 17. Bd4 {[%clk 0:01:54.9]} 17... Bxd4 {[%clk 0:01:09.6]} 18.
Nxd4 {[%clk 0:01:55.8]} 18... Nxe3 {[%clk 0:00:56.1]} 19. dxe3 {[%clk
0:01:56.7]} 19... Bc6 {[%clk 0:00:44.7]} 20. Kf2 {[%clk 0:01:50.7]} 20... Be4
{[%clk 0:00:36.4]} 21. a3 {[%clk 0:01:47.7]} 21... Nc6 {[%clk 0:00:29.1]} 22.
Nxc6 {[%clk 0:01:43.7]} 22... bxc6 {[%clk 0:00:29.5]} 23. Bf3 {[%clk 0:01:35.8]}
23... Bxc2 {[%clk 0:00:24.2]} 24. bxc4 {[%clk 0:01:34.4]} 24... Kc7 {[%clk
0:00:21.3]} 25. Rac1 {[%clk 0:01:29.7]} 25... Bd3 {[%clk 0:00:18.4]} 26. Be2
{[%clk 0:01:27.2]} 26... Be4 {[%clk 0:00:18.4]} 27. Red1 {[%clk 0:01:12.8]}
27... Rb8 {[%clk 0:00:18]} 28. Rd2 {[%clk 0:01:10.5]} 28... Rb3 {[%clk
0:00:18.1]} 29. Rcd1 {[%clk 0:00:47.8]} 29... Re7 {[%clk 0:00:12.3]} 30. Bd3
{[%clk 0:00:46.4]} 30... Rxa3 {[%clk 0:00:03.3]} 31. Bxe4 {[%clk 0:00:43.5]}
31... Rxe4 {[%clk 0:00:04.2]} 32. Rd7+ {[%clk 0:00:37.2]} 32... Kb6 {[%clk
0:00:04.5]} 33. Rxf7 {[%clk 0:00:36.5]} 33... Raxe3 {[%clk 0:00:03.8]} 34. Rxg7
{[%clk 0:00:20.3]} 34... Re2+ {[%clk 0:00:03.4]} 35. Kf3 {[%clk 0:00:20.6]}
35... R4e3+ {[%clk 0:00:03.8]} 36. Kg4 {[%clk 0:00:21.1]} 36... Rxh2 {[%clk
0:00:04.1]} 37. Rdd7 {[%clk 0:00:19.4]} 37... h5+ {[%clk 0:00:04.4]} 38. Kf5
{[%clk 0:00:19.2]} 38... a5 {[%clk 0:00:04.4]} 39. Rb7+ {[%clk 0:00:09]} 39...
Kc5 {[%clk 0:00:04.6]} 40. Ra7 {[%clk 0:00:09.9]} 40... Ra3 {[%clk 0:00:04.7]}
41. Kf6 {[%clk 0:00:07.5]} 41... Kxc4 {[%clk 0:00:04.3]} 42. f5 {[%clk
0:00:07.5]} 42... Rf2 {[%clk 0:00:04.5]} 43. Rac7 {[%clk 0:00:03.8]} 43... c5
{[%clk 0:00:04.7]} 44. Rg5 {[%clk 0:00:03.7]} 44... a4 {[%clk 0:00:04.2]} 45.
Kg6 {[%clk 0:00:04.3]} 45... Raf3 {[%clk 0:00:04.2]} 46. Ra7 {[%clk 0:00:03.4]}
46... Kb4 {[%clk 0:00:04.2]} 47. Kxh5 {[%clk 0:00:03.4]} 47... Rxf5 {[%clk
0:00:03.9]} 48. Rxf5 {[%clk 0:00:03]} 48... Rxf5+ {[%clk 0:00:04.8]} 49. Kh4
{[%clk 0:00:03.8]} 49... a3 {[%clk 0:00:05]} 50. g4 {[%clk 0:00:04.7]} 50... Rf4
{[%clk 0:00:04.1]} 51. Kg3 {[%clk 0:00:04.4]} 51... Rf6 {[%clk 0:00:04]} 52. g5
{[%clk 0:00:04.8]} 52... Rg6 {[%clk 0:00:04.4]} 53. Kg4 {[%clk 0:00:04.8]} 53...
Kb3 {[%clk 0:00:04.6]} 54. Kf5 {[%clk 0:00:04.8]} 54... Rg8 {[%clk 0:00:04.9]}
55. Rb7+ {[%clk 0:00:02.7]} 55... Kc3 {[%clk 0:00:04.6]} 56. Ra7 {[%clk
0:00:02.9]} 56... Kb2 {[%clk 0:00:04.7]} 57. Rb7+ {[%clk 0:00:03.3]} 57... Ka1
{[%clk 0:00:05]} 58. Rc7 {[%clk 0:00:03.7]} 58... a2 {[%clk 0:00:04.8]} 59. Rxc5
{[%clk 0:00:04.2]} 59... Rb8 {[%clk 0:00:04]} 60. Ra5 {[%clk 0:00:04]} 60... Kb2
{[%clk 0:00:04.3]} 61. g6 {[%clk 0:00:04.3]} 61... Rb5+ {[%clk 0:00:02.5]} 62.
Rxb5+ {[%clk 0:00:04.6]} 62... Kc2 {[%clk 0:00:03.1]} 63. Ra5 {[%clk 0:00:05.1]}
1-0

[Event "Early-Titled-Tuesday-Blitz-August-29-2023"]
[Site "Chess.com"]
[Date "2023.08.29"]
[Round "7"]
[White "MatyChess1"]
[Black "Muracle"]
[Result "1-0"]
[WhiteElo "2688"]
[BlackElo "2500"]
[TimeControl "180+1"]
[EndTime "9:18:04 PDT"]
[Termination "MatyChess1 won by checkmate"]

1. d4 {[%clk 0:03:00.6]} 1... Nf6 {[%clk 0:02:56.8]} 2. Bf4 {[%clk 0:03:01.1]}
2... g6 {[%clk 0:02:55.5]} 3. e3 {[%clk 0:03:01.3]} 3... Bg7 {[%clk 0:02:56.1]}
4. h3 {[%clk 0:03:02]} 4... O-O {[%clk 0:02:56.6]} 5. Nf3 {[%clk 0:03:02.7]}
5... c5 {[%clk 0:02:56.8]} 6. c3 {[%clk 0:03:02]} 6... b6 {[%clk 0:02:57.3]} 7.
Be2 {[%clk 0:03:01.4]} 7... Bb7 {[%clk 0:02:58]} 8. O-O {[%clk 0:03:02.1]} 8...
d5 {[%clk 0:02:58.7]} 9. a4 {[%clk 0:03:00.4]} 9... Nc6 {[%clk 0:02:58.9]} 10.
Nbd2 {[%clk 0:02:58.2]} 10... Nd7 {[%clk 0:02:34.8]} 11. Qb3 {[%clk 0:02:43.6]}
11... e5 {[%clk 0:01:38]} 12. dxe5 {[%clk 0:02:43.5]} 12... Ndxe5 {[%clk
0:01:38.9]} 13. Nxe5 {[%clk 0:02:38.9]} 13... Nxe5 {[%clk 0:01:39.8]} 14. a5
{[%clk 0:02:36.4]} 14... d4 {[%clk 0:01:23.8]} 15. cxd4 {[%clk 0:02:26.1]} 15...
cxd4 {[%clk 0:01:23.5]} 16. exd4 {[%clk 0:02:19.7]} 16... Qxd4 {[%clk
0:01:24.4]} 17. Be3 {[%clk 0:02:20.6]} 17... Qd5 {[%clk 0:01:07]} 18. Qxd5
{[%clk 0:02:17.5]} 18... Bxd5 {[%clk 0:01:07.9]} 19. axb6 {[%clk 0:02:03.2]}
19... axb6 {[%clk 0:01:08.8]} 20. Bxb6 {[%clk 0:02:02]} 20... Rab8 {[%clk
0:01:01]} 21. Bd4 {[%clk 0:02:01.8]} 21... Nc6 {[%clk 0:01:00.9]} 22. Bxg7
{[%clk 0:01:59.8]} 22... Kxg7 {[%clk 0:01:01.8]} 23. Rfb1 {[%clk 0:01:50.3]}
23... Nd4 {[%clk 0:01:01]} 24. Bc4 {[%clk 0:01:39.7]} 24... Bxc4 {[%clk
0:00:45.2]} 25. Nxc4 {[%clk 0:01:39.7]} 25... Rb4 {[%clk 0:00:46]} 26. Ne3
{[%clk 0:01:34.4]} 26... Rfb8 {[%clk 0:00:44.7]} 27. Ra7 {[%clk 0:01:33.7]}
27... Rxb2 {[%clk 0:00:38]} 28. Rxb2 {[%clk 0:01:34.6]} 28... Rxb2 {[%clk
0:00:38.4]} 29. Nc4 {[%clk 0:01:35.5]} 29... Rb1+ {[%clk 0:00:25.5]} 30. Kh2
{[%clk 0:01:35.7]} 30... Nf5 {[%clk 0:00:17.6]} 31. Ne5 {[%clk 0:01:33.4]} 31...
Nd6 {[%clk 0:00:18.3]} 32. Rd7 {[%clk 0:01:31.9]} 32... Rb6 {[%clk 0:00:18.5]}
33. g4 {[%clk 0:01:28.7]} 33... Kf6 {[%clk 0:00:16.4]} 34. Nf3 {[%clk 0:01:02]}
34... g5 {[%clk 0:00:16.7]} 35. h4 {[%clk 0:00:53.2]} 35... h6 {[%clk
0:00:16.7]} 36. Ra7 {[%clk 0:00:52.1]} 36... Ne4 {[%clk 0:00:14.5]} 37. Kg1
{[%clk 0:00:42.3]} 37... Rb1+ {[%clk 0:00:14.2]} 38. Kg2 {[%clk 0:00:42.9]}
38... Rb2 {[%clk 0:00:14.9]} 39. Ra6+ {[%clk 0:00:43.6]} 39... Kg7 {[%clk
0:00:14.8]} 40. Nd4 {[%clk 0:00:44.2]} 40... Rxf2+ {[%clk 0:00:06.9]} 41. Kh3
{[%clk 0:00:44.1]} 41... Rd2 {[%clk 0:00:01.9]} 42. Nf5+ {[%clk 0:00:44.1]}
42... Kh7 {[%clk 0:00:02.8]} 43. Rxh6+ {[%clk 0:00:41.9]} 43... Kg8 {[%clk
0:00:02.8]} 44. Ra6 {[%clk 0:00:40]} 44... Rd3+ {[%clk 0:00:03.5]} 45. Kg2
{[%clk 0:00:39.6]} 45... Kh7 {[%clk 0:00:04.2]} 46. h5 {[%clk 0:00:39.3]} 46...
Nd2 {[%clk 0:00:02]} 47. Rf6 {[%clk 0:00:31.9]} 47... Nc4 {[%clk 0:00:02.2]} 48.
Rxf7+ {[%clk 0:00:31.1]} 48... Kg8 {[%clk 0:00:02.6]} 49. Rg7+ {[%clk
0:00:27.1]} 49... Kh8 {[%clk 0:00:02.9]} 50. Rxg5 {[%clk 0:00:28]} 50... Nd2
{[%clk 0:00:01.7]} 51. Rg6 {[%clk 0:00:25.7]} 51... Ne4 {[%clk 0:00:02.3]} 52.
Rh6+ {[%clk 0:00:25.2]} 52... Kg8 {[%clk 0:00:02.5]} 53. Re6 {[%clk 0:00:26.1]}
53... Ng5 {[%clk 0:00:02.3]} 54. Re3 {[%clk 0:00:24.5]} 54... Rd2+ {[%clk
0:00:01.7]} 55. Kg3 {[%clk 0:00:25.1]} 55... Rd7 {[%clk 0:00:01.9]} 56. Kf4
{[%clk 0:00:24.7]} 56... Nf7 {[%clk 0:00:02.6]} 57. Re8+ {[%clk 0:00:24.7]}
57... Kh7 {[%clk 0:00:02.7]} 58. Re7 {[%clk 0:00:25.2]} 58... Rxe7 {[%clk
0:00:03.3]} 59. Nxe7 {[%clk 0:00:26]} 59... Kg7 {[%clk 0:00:04.2]} 60. g5 {[%clk
0:00:23.1]} 60... Nh8 {[%clk 0:00:04.8]} 61. g6 {[%clk 0:00:18.2]} 61... Kf6
{[%clk 0:00:03.7]} 62. Nd5+ {[%clk 0:00:16.4]} 62... Kg7 {[%clk 0:00:04]} 63.
Kg5 {[%clk 0:00:15.9]} 63... Kg8 {[%clk 0:00:01.4]} 64. Kf6 {[%clk 0:00:14.6]}
64... Kf8 {[%clk 0:00:01.4]} 65. g7+ {[%clk 0:00:14.1]} 65... Kg8 {[%clk
0:00:02.1]} 66. Ne7+ {[%clk 0:00:14.7]} 66... Kh7 {[%clk 0:00:02.5]} 67. g8=Q+
{[%clk 0:00:15.3]} 67... Kh6 {[%clk 0:00:03]} 68. Qg5+ {[%clk 0:00:13.7]} 68...
Kh7 {[%clk 0:00:03.3]} 69. Qg7# {[%clk 0:00:13.8]} 1-0